fUSD/lending_fUSD_20260225
["ID","MTS","AMOUNT","RATE_DAILY","PERIOD"]
[406622817,1771984456167,-500.0,7.609e-05,2]
[406622818,1771984456197,-500.0,7.609e-05,2]
[406622819,1771984456231,-500.0,7.609e-05,2]
[406622820,1771984456262,-500.0,7.609e-05,2]
[406622821,1771984456292,-500.0,7.609e-05,2]
[406622822,1771984456326,-500.0,7.609e-05,2]
[406622823,1771984456358,-500.0,7.609e-05,2]
[406622824,1771984456386,-500.0,7.609e-05,2]
[406622825,1771984456416,-500.0,7.609e-05,2]
[406622826,1771984456446,-500.0,7.609e-05,2]
[406622827,1771984456475,-500.0,7.609e-05,2]
[406622828,1771984456505,-500.0,7.609e-05,2]
[406622829,1771984456534,-500.0,7.609e-05,2]
[406622830,1771984456562,-500.0,7.609e-05,2]
[406622831,1771984456592,-500.0,7.609e-05,2]
[406622832,1771984456624,-500.0,7.609e-05,2]
[406622833,1771984456651,-500.0,7.609e-05,2]
[406622834,1771984456681,-13390.41803507,7.61e-05,2]
[406622835,1771984456968,-500.0,7.609e-05,2]
[406622836,1771984456995,-500.0,7.609e-05,2]
[406622837,1771984457026,-500.0,7.609e-05,2]
[406622838,1771984457056,-500.0,7.609e-05,2]
[406622839,1771984457087,-500.0,7.609e-05,2]
[406622840,1771984457115,-500.0,7.609e-05,2]
[406622841,1771984457147,-500.0,7.609e-05,2]
[406622842,1771984457175,-500.0,7.609e-05,2]
[406622843,1771984457205,-500.0,7.609e-05,2]
[406622844,1771984457234,-500.0,7.609e-05,2]
[406622845,1771984457265,-500.0,7.609e-05,2]
[406622846,1771984457295,-19500.0,7.61e-05,2]
[406622847,1771984608415,161.282123,0.00045822,90]
[406622848,1771984639258,-300.0,7.608e-05,2]
[406622849,1771984639286,-1200.0,7.608e-05,2]
[406622850,1771984639313,-300.0,7.608e-05,2]
[406622851,1771984639341,-300.0,7.608e-05,2]
[406622852,1771984639368,-150.0,7.608e-05,2]
[406622853,1771984639511,5500.01,7.51e-05,2]
[406622854,1771984639538,10000.01,7.51e-05,2]
[406622855,1771984639561,10000.01,7.51e-05,2]
[406622856,1771984640973,-4500.0,7.51e-05,2]
[406622857,1771984641078,-10000.01,7.51e-05,2]
[406622858,1771984641826,-10000.01,7.51e-05,2]
[406622859,1771984641877,-10000.01,7.51e-05,2]
[406622860,1771984641890,-10000.01,7.51e-05,2]
[406622861,1771984641914,-10000.01,7.51e-05,2]
[406622862,1771984641928,-10000.01,7.51e-05,2]
[406622863,1771984642496,5513.05,7.19e-05,2]
[406622864,1771984644438,500.0,0.00045822,120]
[406622865,1771984645153,-10000.01,7.5e-05,2]
[406622866,1771984654228,-10000.01,7.5e-05,2]
[406622867,1771984660381,-1991.93523244,7.5e-05,2]
[406622868,1771984660414,-6016.13953512,7.51e-05,2]
[406622869,1771984706577,500.0,0.00045822,120]
[406622870,1771984706804,500.0,0.00045822,120]
[406622871,1771984707062,500.0,0.00045822,120]
[406622872,1771984707292,450.7533885,0.00045822,120]
[406622873,1771984722668,150.0,7.128e-05,2]
[406622874,1771984737725,-300.0,7.509e-05,2]
[406622875,1771984737746,-638.12370871,7.509e-05,2]
[406622876,1771984737943,-271.97927545,7.509e-05,2]
[406622877,1771984737965,-225.80904997,7.509e-05,2]
[406622878,1771984737987,-500.0,7.509e-05,2]
[406622879,1771984738011,-500.0,7.509e-05,2]
[406622880,1771984738032,-455.12269827,7.509e-05,2]
[406622881,1771984738055,-500.0,7.509e-05,2]
[406622882,1771984738078,-500.0,7.509e-05,2]
[406622883,1771984738100,-500.0,7.509e-05,2]
[406622884,1771984738120,-500.0,7.509e-05,2]
[406622885,1771984738139,-108.9652676,7.509e-05,2]
[406622886,1771984738682,-538.85520245,7.509e-05,2]
[406622887,1771984738706,-500.0,7.509e-05,2]
[406622888,1771984738729,-500.0,7.509e-05,2]
[406622889,1771984738751,-500.0,7.509e-05,2]
[406622890,1771984738776,-500.0,7.509e-05,2]
[406622891,1771984738800,-500.0,7.509e-05,2]
[406622892,1771984738823,-500.0,7.509e-05,2]
[406622893,1771984738845,-500.0,7.509e-05,2]
[406622894,1771984738867,-500.0,7.509e-05,2]
[406622895,1771984738889,-461.14479755,7.509e-05,2]
[406622896,1771984739800,-38.85520245,7.509e-05,2]
[406622897,1771984739824,-500.0,7.509e-05,2]
[406622898,1771984739848,-500.0,7.509e-05,2]
[406622899,1771984739870,-500.0,7.509e-05,2]
[406622900,1771984739893,-500.0,7.509e-05,2]
[406622901,1771984739916,-500.0,7.509e-05,2]
[406622902,1771984739939,-500.0,7.509e-05,2]
[406622903,1771984739964,-500.0,7.509e-05,2]
[406622904,1771984739987,-500.0,7.509e-05,2]
[406622905,1771984740007,-500.0,7.509e-05,2]
[406622906,1771984740034,-461.14479755,7.509e-05,2]
[406622907,1771984740802,-38.85520245,7.509e-05,2]
[406622908,1771984740824,-500.0,7.509e-05,2]
[406622909,1771984740847,-500.0,7.509e-05,2]
[406622910,1771984740869,-500.0,7.509e-05,2]
[406622911,1771984740892,-500.0,7.509e-05,2]
[406622912,1771984740916,-500.0,7.509e-05,2]
[406622913,1771984740940,-500.0,7.509e-05,2]
[406622914,1771984740964,-500.0,7.509e-05,2]
[406622915,1771984740987,-500.0,7.509e-05,2]
[406622916,1771984741010,-500.0,7.509e-05,2]
[406622917,1771984741034,-461.14479755,7.509e-05,2]
[406622918,1771984742018,-38.85520245,7.509e-05,2]
[406622919,1771984742041,-500.0,7.509e-05,2]
[406622920,1771984742065,-500.0,7.509e-05,2]
[406622921,1771984742087,-500.0,7.509e-05,2]
[406622922,1771984742109,-500.0,7.509e-05,2]
[406622923,1771984742132,-195.7165441,7.509e-05,2]
[406622924,1771984742155,-500.0,7.509e-05,2]
[406622925,1771984742178,-500.0,7.509e-05,2]
[406622926,1771984742201,-500.0,7.509e-05,2]
[406622927,1771984742223,-500.0,7.509e-05,2]
[406622928,1771984742245,-500.0,7.509e-05,2]
[406622929,1771984742267,-265.42825345,7.509e-05,2]
[406622930,1771984744627,-234.57174655,7.509e-05,2]
[406622931,1771984744651,-500.0,7.509e-05,2]
[406622932,1771984744676,-500.0,7.509e-05,2]
[406622933,1771984744699,-500.0,7.509e-05,2]
[406622934,1771984744722,-500.0,7.509e-05,2]
[406622935,1771984744745,-500.0,7.509e-05,2]
[406622936,1771984744769,-500.0,7.509e-05,2]
[406622937,1771984744793,-500.0,7.509e-05,2]
[406622938,1771984744816,-500.0,7.509e-05,2]
[406622939,1771984744838,-500.0,7.509e-05,2]
[406622940,1771984744861,-265.42825345,7.509e-05,2]
[406622941,1771984745916,-234.57174655,7.509e-05,2]
[406622942,1771984745943,-500.0,7.509e-05,2]
[406622943,1771984745972,-500.0,7.509e-05,2]
[406622944,1771984745998,-500.0,7.509e-05,2]
[406622945,1771984746026,-500.0,7.509e-05,2]
[406622946,1771984746049,-500.0,7.509e-05,2]
[406622947,1771984746073,-500.0,7.509e-05,2]
[406622948,1771984746097,-500.0,7.509e-05,2]
[406622949,1771984746121,-500.0,7.509e-05,2]
[406622950,1771984746145,-500.0,7.509e-05,2]
[406622951,1771984746169,-265.42825345,7.509e-05,2]
[406622952,1771984747283,-234.57174655,7.509e-05,2]
[406622953,1771984747306,-500.0,7.509e-05,2]
[406622954,1771984747329,-500.0,7.509e-05,2]
[406622955,1771984747352,-500.0,7.509e-05,2]
[406622956,1771984747374,-500.0,7.509e-05,2]
[406622957,1771984747397,-500.0,7.509e-05,2]
[406622958,1771984747419,-500.0,7.509e-05,2]
[406622959,1771984747442,-500.0,7.509e-05,2]
[406622960,1771984747465,-500.0,7.509e-05,2]
[406622961,1771984747487,-500.0,7.509e-05,2]
[406622962,1771984747509,-265.42825345,7.509e-05,2]
[406622963,1771984803783,29208.0,7.479e-05,2]
[406622965,1771984850587,500.0,7.105e-05,2]
[406622966,1771984850807,-1200.0,7.509e-05,2]
[406622967,1771984850832,-300.0,7.509e-05,2]
[406622968,1771984850852,-300.0,7.509e-05,2]
[406622969,1771984850873,-150.0,7.509e-05,2]
[406622970,1771984850893,-1532.60673339,7.51e-05,2]
[406622971,1771984850914,-1517.39326661,7.51e-05,2]
[406622972,1771984851825,-3647.4789857,7.51e-05,2]
[406622973,1771984851848,-2705.0520286,7.51e-05,2]
[406622974,1771984852054,-1279.02931103,7.51e-05,2]
[406622975,1771984852083,-2303.8570133,7.51e-05,2]
[406622976,1771984852117,-2834.23735134,7.51e-05,2]
[406622977,1771984852161,-10000.01,7.51e-05,2]
[406622978,1771984852271,-10000.01,7.51e-05,2]
[406622979,1771984852360,-5000.0,7.51e-05,2]
[406622980,1771984852385,-10000.01,7.51e-05,2]
[406622981,1771984853175,-5000.0,7.51e-05,2]
[406622982,1771984854053,-5000.0,7.51e-05,2]
[406622983,1771984854498,-5000.0,7.51e-05,2]
[406622984,1771984854778,-10000.01,7.51e-05,2]
[406622985,1771984854989,-5000.0,7.51e-05,2]
[406622986,1771984855508,-5000.0,7.51e-05,2]
[406622987,1771984856441,-5000.0,7.51e-05,2]
[406622988,1771984856942,-5000.0,7.51e-05,2]
[406622989,1771984857926,-10000.01,7.51e-05,2]
[406622990,1771984858038,-10000.01,7.51e-05,2]
[406622991,1771984858102,-5000.0,7.51e-05,2]
[406622992,1771984858147,-10000.01,7.51e-05,2]
[406622993,1771984858243,-10000.01,7.51e-05,2]
[406622994,1771984858651,-5000.0,7.51e-05,2]
[406622995,1771984860337,-5000.0,7.51e-05,2]
[406622998,1771984863046,-5000.0,7.51e-05,2]
[406622999,1771984865257,-5000.0,7.51e-05,2]
[406623000,1771984866813,-5000.0,7.51e-05,2]
[406623001,1771984868877,-5000.0,7.51e-05,2]
[406623002,1771984895513,2492.315,7.36e-05,2]
[406623003,1771984895649,284.955,7.36e-05,2]
[406623004,1771984926147,63038.0,7.479e-05,2]
[406623006,1771984944395,500.0,0.00045815,120]
[406623007,1771984958453,-300.0,7.509e-05,2]
[406623008,1771984975325,-250.0,7.517e-05,2]
[406623009,1771984975356,-564.13159954,7.517e-05,2]
[406623010,1771984975375,-250.0,7.517e-05,2]
[406623011,1771984975388,-564.13159954,7.517e-05,2]
[406623012,1771984975399,-3371.74680092,7.517e-05,2]
[406623013,1771984975511,-5000.01,7.517e-05,2]
[406623014,1771984975617,-755.86770124,7.517e-05,2]
[406623015,1771984975644,-709.35353794,7.517e-05,2]
[406623016,1771984975657,-755.86770124,7.517e-05,2]
[406623017,1771984975668,-1313.6998204,7.517e-05,2]
[406623018,1771984975678,-999.24,7.609e-05,2]
[406623019,1771984975688,-465.98123918,7.61e-05,2]
[406623020,1771984975745,-5000.01,7.61e-05,2]
[406623021,1771984975875,-5000.01,7.61e-05,2]
[406623022,1771984976049,-5000.01,7.61e-05,2]
[406623023,1771984976160,-5000.01,7.61e-05,2]
[406623024,1771984976265,-5000.01,7.61e-05,2]
[406623025,1771984976367,-5000.01,7.61e-05,2]
[406623026,1771984976470,-5000.01,7.61e-05,2]
[406623027,1771984978286,-5000.01,7.61e-05,2]
[406623028,1771984978500,-5000.01,7.61e-05,2]
[406623029,1771984978607,-5000.01,7.61e-05,2]
[406623030,1771984978722,-5000.01,7.61e-05,2]
[406623031,1771984978840,-5000.01,7.61e-05,2]
[406623032,1771984978964,-5000.01,7.61e-05,2]
[406623033,1771984979075,-5000.01,7.61e-05,2]
[406623034,1771984979175,-5000.01,7.61e-05,2]
[406623035,1771984979282,-5000.01,7.61e-05,2]
[406623036,1771984979393,-5000.01,7.61e-05,2]
[406623037,1771984981319,-5000.01,7.61e-05,2]
[406623038,1771984981539,-5000.01,7.61e-05,2]
[406623039,1771984981634,-5000.01,7.61e-05,2]
[406623040,1771984981728,-5000.01,7.61e-05,2]
[406623041,1771984981833,-5000.01,7.61e-05,2]
[406623042,1771984982207,-300.0,7.609e-05,2]
[406623043,1771984982266,-300.0,7.61e-05,2]
[406623044,1771984982278,-4400.01,7.61e-05,2]
[406623045,1771984982290,-5000.01,7.61e-05,2]
[406623046,1771984982311,-5000.01,7.61e-05,2]
[406623047,1771984982391,-150.0,7.609e-05,2]
[406623048,1771984982410,-150.0,7.61e-05,2]
[406623049,1771984982421,-4700.01,7.61e-05,2]
[406623050,1771984982482,-5000.01,7.61e-05,2]
[406623051,1771984986182,446.6865961,7.509e-05,2]
[406623052,1771984987302,-300.0,7.609e-05,2]
[406623053,1771984987320,-300.0,7.61e-05,2]
[406623054,1771984987341,-4400.01,7.61e-05,2]
[406623055,1771984993359,-5000.01,7.61e-05,2]
[406623056,1771984996508,-5000.01,7.61e-05,2]
[406623057,1771984996728,-5000.01,7.61e-05,2]
[406623058,1771984996827,-5000.01,7.61e-05,2]
[406623059,1771984996934,-5000.01,7.61e-05,2]
[406623060,1771984997055,-5000.01,7.61e-05,2]
[406623061,1771984997155,-5000.01,7.61e-05,2]
[406623062,1771984997256,-5000.01,7.61e-05,2]
[406623063,1771984999366,-5000.01,7.61e-05,2]
[406623064,1771985000599,500.0,7.509e-05,2]
[406623065,1771985000640,500.0,7.509e-05,2]
[406623066,1771985000675,500.0,7.509e-05,2]
[406623067,1771985000708,500.0,7.509e-05,2]
[406623068,1771985000740,500.0,7.509e-05,2]
[406623069,1771985000774,500.0,7.509e-05,2]
[406623070,1771985000808,500.0,7.509e-05,2]
[406623071,1771985000861,500.0,7.509e-05,2]
[406623072,1771985000902,500.0,7.509e-05,2]
[406623073,1771985000941,500.0,7.509e-05,2]
[406623074,1771985000988,500.0,7.509e-05,2]
[406623075,1771985001025,500.0,7.509e-05,2]
[406623076,1771985001066,500.0,7.509e-05,2]
[406623077,1771985001218,500.0,7.509e-05,2]
[406623078,1771985001253,500.0,7.509e-05,2]
[406623079,1771985001288,500.0,7.509e-05,2]
[406623080,1771985001324,500.0,7.509e-05,2]
[406623081,1771985001364,453.3234039,7.509e-05,2]
[406623082,1771985001389,46.6765961,7.509e-05,2]
[406623083,1771985001422,500.0,7.509e-05,2]
[406623084,1771985001462,500.0,7.509e-05,2]
[406623085,1771985001494,500.0,7.509e-05,2]
[406623086,1771985001527,168.41408802,7.509e-05,2]
[406623087,1771985001589,500.0,7.509e-05,2]
[406623088,1771985001634,500.0,7.509e-05,2]
[406623089,1771985001680,500.0,7.509e-05,2]
[406623090,1771985001750,500.0,7.509e-05,2]
[406623091,1771985001787,500.0,7.509e-05,2]
[406623092,1771985002101,500.0,7.509e-05,2]
[406623093,1771985002581,-5000.01,7.61e-05,2]
[406623094,1771985002591,-5000.01,7.61e-05,2]
[406623095,1771985002668,-5000.01,7.61e-05,2]
[406623096,1771985002781,-5000.01,7.61e-05,2]
[406623097,1771985002895,-5000.01,7.61e-05,2]
[406623098,1771985003000,-5000.01,7.61e-05,2]
[406623099,1771985010227,-5000.01,7.61e-05,2]
[406623101,1771985015959,500.0,7.509e-05,2]
[406623102,1771985015993,500.0,7.509e-05,2]
[406623103,1771985016032,500.0,7.509e-05,2]
[406623104,1771985038021,3784.91931588,7.382e-05,2]
[406623105,1771985038045,10000.01,7.382e-05,2]
[406623106,1771985038067,9165.23068412,7.382e-05,2]
[406623107,1771985053933,500.0,0.00045834,120]
[406623108,1771985054180,500.0,0.00045834,120]
[406623109,1771985054422,500.0,0.00045834,120]
[406623110,1771985055297,500.0,0.00045834,120]
[406623111,1771985055446,190.38549281,7.509e-05,2]
[406623112,1771985055542,500.0,0.00045834,120]
[406623113,1771985055765,500.0,0.00045834,120]
[406623114,1771985055990,500.0,0.00045834,120]
[406623115,1771985056215,500.0,0.00045834,120]
[406623116,1771985056448,500.0,0.00045834,120]
[406623117,1771985056685,500.0,0.00045834,120]
[406623118,1771985056916,500.0,0.00045834,120]
[406623119,1771985057139,500.0,0.00045834,120]
[406623120,1771985057269,172.0,1.26e-06,2]
[406623121,1771985057390,287.11570028,0.00045834,120]
[406623122,1771985083564,161.68029981,7.509e-05,2]
[406623123,1771985116406,19116.951527,0.00045834,120]
[406623124,1771985120254,310.71352326,7.51e-05,2]
[406623125,1771985120277,10000.01,7.51e-05,2]
[406623126,1771985120299,10000.01,7.51e-05,2]
[406623127,1771985120321,10000.01,7.51e-05,2]
[406623128,1771985120348,10000.01,7.51e-05,2]
[406623129,1771985120385,10000.01,7.51e-05,2]
[406623130,1771985120411,10000.01,7.51e-05,2]
[406623131,1771985120439,10000.01,7.51e-05,2]
[406623132,1771985120466,10000.01,7.51e-05,2]
[406623133,1771985120494,10000.01,7.51e-05,2]
[406623135,1771985135842,-600.0,7.51e-05,2]
[406623136,1771985135872,-10000.01,7.51e-05,2]
[406623137,1771985135966,-10000.01,7.51e-05,2]
[406623138,1771985138661,-10000.01,7.51e-05,2]
[406623139,1771985138761,-10000.01,7.51e-05,2]
[406623140,1771985138922,-10000.01,7.51e-05,2]
[406623141,1771985139043,-10000.01,7.51e-05,2]
[406623142,1771985139150,-10000.01,7.51e-05,2]
[406623143,1771985139250,-10000.01,7.51e-05,2]
[406623144,1771985141630,-10000.01,7.51e-05,2]
[406623145,1771985144671,-10000.01,7.51e-05,2]
[406623146,1771985144771,-10000.01,7.51e-05,2]
[406623147,1771985144870,-10000.01,7.51e-05,2]
[406623148,1771985144992,-10000.01,7.51e-05,2]
[406623149,1771985145091,-10000.01,7.51e-05,2]
[406623150,1771985145230,-10000.01,7.51e-05,2]
[406623151,1771985145326,-10000.01,7.51e-05,2]
[406623152,1771985145426,-10000.01,7.51e-05,2]
[406623153,1771985157931,469.31,0.0001789,120]
[406623154,1771985222522,1596.0,7.479e-05,2]
[406623156,1771985237113,6861.55,7.116e-05,2]
[406623159,1771985243843,500.0,0.00045834,120]
[406623189,1771985365923,1234.11,7.012e-05,2]
[406623200,1771985393503,814.96,7.012e-05,2]
[406623201,1771985406785,166.66,7.213e-05,2]
[406623215,1771985431792,-1200.0,7.508e-05,2]
[406623216,1771985431802,-300.0,7.508e-05,2]
[406623217,1771985431811,-300.0,7.508e-05,2]
[406623218,1771985431821,-214.0,7.508e-05,2]
[406623219,1771985431831,-300.0,7.509e-05,2]
[406623220,1771985431841,-150.0,7.509e-05,2]
[406623221,1771985431851,-500.0,7.509e-05,2]
[406623222,1771985431860,-500.0,7.509e-05,2]
[406623223,1771985431870,-496.4275613,7.509e-05,2]
[406623224,1771985431879,-500.0,7.509e-05,2]
[406623225,1771985431888,-500.0,7.509e-05,2]
[406623226,1771985431897,-500.0,7.509e-05,2]
[406623227,1771985431907,-500.0,7.509e-05,2]
[406623228,1771985431916,-500.0,7.509e-05,2]
[406623229,1771985431925,-533.27586024,7.509e-05,2]
[406623230,1771985431934,-500.0,7.509e-05,2]
[406623231,1771985431943,-1852.61403972,7.51e-05,2]
[406623232,1771985431953,-6627.83740112,7.51e-05,2]
[406623233,1771985431963,-38103.8831,7.51e-05,2]
[406623235,1771985431971,-6743.6302,7.51e-05,2]
[406623236,1771985431981,-166.66,7.51e-05,2]
[406623238,1771985431990,-6200.0,7.6e-05,2]
[406623240,1771985431999,-1000.0,7.609e-05,2]
[406623243,1771985432009,-1000.0,7.609e-05,2]
[406623245,1771985432018,-124800.48169192,7.61e-05,2]
[406623248,1771985432027,-12400.0,7.7e-05,2]
[406623250,1771985432037,-4098.0,7.781e-05,2]
[406623252,1771985432047,-64029.9259716,7.782e-05,2]
[406623254,1771985432056,-18600.0,7.8e-05,2]
[406623256,1771985432066,-166.66,7.808e-05,2]
[406623258,1771985432075,-4234.79,7.849e-05,2]
[406623260,1771985432084,-151.0,7.852e-05,2]
[406623261,1771985432093,-156.587,7.852e-05,2]
[406623264,1771985432102,-162.380719,7.852e-05,2]
[406623266,1771985432112,-160.11759511,7.852e-05,2]
[406623268,1771985432121,-19915.35,7.863e-05,2]
[406623270,1771985432130,-499.99,7.863e-05,2]
[406623272,1771985432141,-1186.15,7.863e-05,2]
[406623273,1771985432152,-151.0,7.897e-05,2]
[406623275,1771985432161,-151.0,7.9e-05,2]
[406623277,1771985432170,-49999.99,7.9e-05,2]
[406623279,1771985432179,-299.99,7.9e-05,2]
[406623281,1771985432189,-24900.0,7.9e-05,2]
[406623283,1771985432198,-1852.42,7.902e-05,2]
[406623285,1771985432208,-14660.12,7.902e-05,2]
[406623287,1771985432218,-3572.96,7.902e-05,2]
[406623289,1771985432227,-150.99,7.902e-05,2]
[406623291,1771985432237,-308.7,7.902e-05,2]
[406623293,1771985432247,-9999.99,7.902e-05,2]
[406623295,1771985432256,-509.82,7.902e-05,2]
[406623297,1771985432265,-9999.99,7.902e-05,2]
[406623299,1771985432274,-1613.77,7.902e-05,2]
[406623301,1771985432283,-9999.99,7.902e-05,2]
[406623303,1771985432292,-35025.06,7.902e-05,2]
[406623305,1771985432301,-5919.71,7.902e-05,2]
[406623307,1771985432310,-516.09,7.902e-05,2]
[406623309,1771985432319,-150.99,7.902e-05,2]
[406623311,1771985432329,-4999.99,7.902e-05,2]
[406623313,1771985432338,-9999.99,7.902e-05,2]
[406623315,1771985432347,-999.99,7.902e-05,2]
[406623317,1771985432356,-9999.99,7.902e-05,2]
[406623319,1771985432365,-9999.99,7.902e-05,2]
[406623321,1771985432374,-3839.28,7.902e-05,2]
[406623323,1771985432383,-995.364485,7.945e-05,2]
[406623325,1771985432393,-31319.636937,7.945e-05,2]
[406623327,1771985432402,-328.389587,7.945e-05,2]
[406623329,1771985432411,-3343.0,7.978e-05,2]
[406623331,1771985432420,-616.92968097,7.999e-05,2]
[406623333,1771985432429,-538.77878692,7.999e-05,2]
[406623335,1771985432439,-31100.0,8e-05,2]
[406623337,1771985432447,-166.66,8.106e-05,2]
[406623339,1771985432456,-1600.0,8.141e-05,2]
[406623340,1771985432465,-2979.32467,8.178e-05,2]
[406623341,1771985432476,-151.33292021,8.219e-05,2]
[406623342,1771985432485,-150.0,8.219e-05,2]
[406623343,1771985432494,-150.0,8.219e-05,2]
[406623344,1771985432502,-607.0,8.219e-05,2]
[406623345,1771985432511,-150.0,8.219e-05,2]
[406623346,1771985432520,-150.0,8.219e-05,2]
[406623347,1771985432529,-158.18235366,8.219e-05,2]
[406623348,1771985432538,-500.0,8.219e-05,2]
[406623349,1771985432548,-500.0,8.219e-05,2]
[406623350,1771985432556,-150.0,8.219e-05,2]
[406623351,1771985432566,-150.0,8.219e-05,2]
[406623352,1771985432579,-150.0,8.219e-05,2]
[406623353,1771985432588,-150.0,8.219e-05,2]
[406623354,1771985432599,-500.0,8.219e-05,2]
[406623355,1771985432619,-150.0,8.219e-05,2]
[406623356,1771985432638,-500.0,8.219e-05,2]
[406623358,1771985432659,-500.0,8.219e-05,2]
[406623360,1771985432681,-150.0,8.219e-05,2]
[406623362,1771985432693,-150.0,8.219e-05,2]
[406623364,1771985432704,-150.0,8.219e-05,2]
[406623366,1771985432714,-500.0,8.219e-05,2]
[406623368,1771985432724,-150.0,8.219e-05,2]
[406623370,1771985432733,-155.94079705,8.219e-05,2]
[406623372,1771985432747,-500.0,8.219e-05,2]
[406623374,1771985432756,-500.0,8.219e-05,2]
[406623376,1771985432767,-500.0,8.219e-05,2]
[406623378,1771985432776,-500.0,8.219e-05,2]
[406623380,1771985432785,-1436.0,8.219e-05,2]
[406623382,1771985432794,-150.0,8.219e-05,2]
[406623384,1771985432803,-500.0,8.219e-05,2]
[406623385,1771985432813,-296.817414,8.219e-05,2]
[406623388,1771985432822,-152.132,8.219e-05,2]
[406623390,1771985432831,-7693.19,8.219e-05,2]
[406623392,1771985432841,-500.0,8.219e-05,2]
[406623394,1771985432850,-317.35,8.219e-05,2]
[406623396,1771985432859,-1000.0,8.219e-05,2]
[406623398,1771985432868,-420.0,8.259e-05,2]
[406623400,1771985432877,-420.0,8.259e-05,2]
[406623402,1771985432886,-1680.0,8.259e-05,2]
[406623404,1771985432895,-250.0,8.26e-05,2]
[406623406,1771985432904,-250.0,8.26e-05,2]
[406623407,1771985432913,-250.0,8.26e-05,2]
[406623410,1771985432923,-420.0,8.26e-05,2]
[406623412,1771985432932,-255.0,8.26e-05,2]
[406623414,1771985432941,-278.08254747,8.274e-05,2]
[406623416,1771985432951,-150.0,8.274e-05,2]
[406623417,1771985432960,-607.0,8.274e-05,2]
[406623419,1771985432969,-150.0,8.274e-05,2]
[406623421,1771985432978,-163.30399252,8.274e-05,2]
[406623423,1771985432987,-500.0,8.274e-05,2]
[406623425,1771985432996,-500.0,8.274e-05,2]
[406623427,1771985433004,-150.0,8.274e-05,2]
[406623429,1771985433013,-153.81120609,8.274e-05,2]
[406623431,1771985433023,-534.7716115,8.274e-05,2]
[406623434,1771985433033,-150.0,8.274e-05,2]
[406623435,1771985433043,-587.38563793,8.274e-05,2]
[406623438,1771985433052,-500.0,8.274e-05,2]
[406623439,1771985433062,-252.3681492,8.274e-05,2]
[406623441,1771985433073,-150.0,8.274e-05,2]
[406623444,1771985433082,-150.0,8.274e-05,2]
[406623446,1771985433091,-500.0,8.274e-05,2]
[406623447,1771985433100,-150.0,8.274e-05,2]
[406623450,1771985433110,-523.07535699,8.274e-05,2]
[406623451,1771985433119,-500.0,8.274e-05,2]
[406623453,1771985433127,-500.0,8.274e-05,2]
[406623455,1771985433137,-1436.0,8.274e-05,2]
[406623457,1771985433149,-500.0,8.274e-05,2]
[406623459,1771985433158,-151.75808628,8.274e-05,2]
[406623461,1771985433168,-500.0,8.274e-05,2]
[406623463,1771985433177,-151.0,8.274e-05,2]
[406623465,1771985433187,-151.0,8.274e-05,2]
[406623467,1771985433196,-151.0,8.274e-05,2]
[406623469,1771985433205,-151.0,8.274e-05,2]
[406623471,1771985433216,-206.62255583,8.329e-05,2]
[406623473,1771985433225,-607.0,8.329e-05,2]
[406623475,1771985433234,-150.0,8.329e-05,2]
[406623477,1771985433243,-500.0,8.329e-05,2]
[406623479,1771985433252,-500.0,8.329e-05,2]
[406623480,1771985433261,-150.0,8.329e-05,2]
[406623481,1771985433270,-150.0,8.329e-05,2]
[406623482,1771985433280,-500.0,8.329e-05,2]
[406623483,1771985433289,-150.0,8.329e-05,2]
[406623484,1771985433299,-150.0,8.329e-05,2]
[406623485,1771985433308,-500.0,8.329e-05,2]
[406623486,1771985433322,-150.0,8.329e-05,2]
[406623487,1771985433332,-205.56107838,8.329e-05,2]
[406623488,1771985433341,-500.0,8.329e-05,2]
[406623489,1771985433350,-1436.0,8.329e-05,2]
[406623490,1771985433359,-500.0,8.329e-05,2]
[406623491,1771985433368,-500.0,8.329e-05,2]